bitfinex/quotes_BTCUSD_20250303
["timestamp","ask_amount","ask_price","bid_price","bid_amount"]
[1740961390967,0.00056828,94070.0,94069.0,0.0002131]
[1740961391319,0.00056828,94070.0,94069.0,0.17956898]
[1740961391525,0.00056828,94070.0,94069.0,0.02711198]
[1740961391728,0.16002328,94070.0,94069.0,0.02011198]
[1740961392632,0.16002328,94070.0,94069.0,0.02711198]
[1740961392988,0.46002328,94070.0,94069.0,0.02711198]
[1740961393192,0.78579288,94070.0,94069.0,0.02711198]
[1740961393711,0.78579288,94070.0,94032.0,0.00044772]
[1740961393712,0.159516,94034.0,94032.0,0.00044772]
[1740961394439,0.159518,94033.0,94032.0,0.00044772]
[1740961394640,0.16137915,94033.0,94032.0,0.00044772]
[1740961394839,0.47224385,94033.0,94032.0,0.00044772]
[1740961395076,0.2796696,94045.0,94032.0,0.00044772]
[1740961395077,0.212673,94041.0,94032.0,0.00044772]
[1740961395219,0.159516,94034.0,94032.0,0.00044772]
[1740961395418,0.001,94034.0,94027.0,0.07646575]
[1740961395625,0.00186111,94041.0,94027.0,0.07646575]
[1740961395847,0.159513,94036.0,94029.0,0.159525]
[1740961396053,0.159521,94032.0,94025.0,0.00044772]
[1740961396282,0.159521,94032.0,94025.0,0.15997772]
[1740961396470,0.01089835,94042.0,94025.0,0.15997772]
[1740961396471,0.0038455,94035.0,94025.0,0.00044772]
[1740961396644,0.00186108,94043.0,94025.0,0.00044772]
[1740961396985,0.05,94079.0,94032.0,0.15952]
[1740961396986,0.001,94033.0,94032.0,0.15952]
[1740961397324,0.00186085,94054.0,94025.0,0.00044772]
[1740961397528,0.001,94035.0,94025.0,0.00044772]
[1740961397931,0.159528,94028.0,94025.0,0.00044772]
[1740961398346,0.001,94033.0,94025.0,0.00044772]
[1740961398681,0.00186111,94038.0,94025.0,0.00044772]
[1740961398882,0.001,94035.0,94025.0,0.15997872]
[1740961399100,0.001,94035.0,94025.0,0.00044772]
[1740961399244,0.213688,94035.0,94025.0,0.00044772]
[1740961399441,0.00186111,94034.0,94025.0,0.00044772]
[1740961399686,0.159516,94034.0,94033.0,1.5]
[1740961400361,0.159516,94034.0,94033.0,1.47399999]
[1740961401099,0.15953,94026.0,94025.0,0.00044772]
[1740961401306,0.0804,94045.0,94025.0,0.00044772]
[1740961401455,0.00380552,94026.0,94025.0,0.00044772]
[1740961401659,0.001,94034.0,94025.0,0.00044772]
[1740961401857,0.159523,94031.0,94025.0,0.00044772]
[1740961402141,0.212703,94028.0,94025.0,0.00044772]
[1740961402342,0.00380555,94027.0,94025.0,0.00044772]
[1740961402637,0.212693,94032.0,94025.0,0.00044772]
[1740961402836,0.00380552,94026.0,94025.0,0.00044772]
[1740961403069,0.15953,94026.0,94025.0,0.00044772]
[1740961403201,0.16333553,94026.0,94025.0,0.00044772]
[1740961403413,0.1761189,94026.0,94025.0,0.00044772]
[1740961403750,0.1771189,94026.0,94025.0,0.00044772]
[1740961404050,0.1761189,94026.0,94025.0,0.00044772]
[1740961404482,0.16619689,94026.0,94025.0,0.00044772]
[1740961404684,0.00480553,94026.0,94025.0,0.15997972]
[1740961404833,0.16333553,94026.0,94025.0,0.00044772]
[1740961405000,0.16053,94026.0,94025.0,0.00044772]
[1740961405204,0.16426959,94026.0,94025.0,0.00044772]
[1740961405441,0.16326959,94026.0,94025.0,0.00044772]
[1740961406855,0.16426959,94026.0,94025.0,0.00044772]
[1740961407119,0.16326959,94026.0,94025.0,0.00044772]
[1740961407320,0.16426959,94026.0,94025.0,0.00044772]
[1740961407764,0.74293919,94026.0,94025.0,0.00044772]
[1740961407938,0.159608,93980.0,93974.0,0.000213]
[1740961408280,0.16328289,93980.0,93979.0,0.00511076]
[1740961408830,0.16514521,93980.0,93979.0,0.00511076]
[1740961409028,0.53481835,93980.0,93979.0,0.00511076]
[1740961409304,0.49494802,93980.0,93979.0,0.00511076]
[1740961409436,0.66482802,93980.0,93979.0,0.00511076]
[1740961409871,0.99449762,93980.0,93979.0,0.00511076]
[1740961410525,0.3,93957.0,93952.0,0.000213]
[1740961410729,0.159654,93953.0,93952.0,0.00061607]
[1740961410954,0.16151683,93953.0,93952.0,0.00061607]
[1740961411430,0.16533115,93953.0,93952.0,0.00061607]
[1740961411837,0.46533115,93953.0,93952.0,0.00061607]
[1740961412048,0.46446832,93953.0,93952.0,0.00061607]
[1740961413342,0.46346832,93953.0,93952.0,0.00061607]
[1740961413689,0.46446832,93953.0,93952.0,0.00061607]
[1740961413889,0.46346832,93953.0,93952.0,0.00061607]
[1740961414311,0.46446832,93953.0,93952.0,0.00061607]
[1740961414697,0.46346832,93953.0,93952.0,0.000459]
[1740961414891,0.46446832,93953.0,93952.0,0.000459]
[1740961415161,0.74413792,93953.0,93952.0,0.000459]
[1740961415356,0.74313792,93953.0,93952.0,0.000459]
[1740961415557,0.459657,93951.0,93950.0,0.003449]
[1740961415920,0.92984304,93951.0,93950.0,0.003449]
[1740961416159,0.82449522,93951.0,93950.0,0.003449]
[1740961416490,0.82449522,93951.0,93937.0,0.00044751]
[1740961416491,0.459679,93938.0,93937.0,2.1e-07]
[1740961416628,0.459705,93923.0,93908.0,0.00499]
[1740961416836,0.159729,93909.0,93908.0,0.00499]
[1740961417324,0.01294593,93909.0,93908.0,0.00511072]
[1740961417541,0.17624306,93909.0,93908.0,0.00511072]
[1740961417861,0.17724306,93909.0,93908.0,0.00511072]
[1740961418074,0.1753793,93909.0,93908.0,0.00511072]
[1740961418527,0.17724297,93909.0,93908.0,0.00511072]
[1740961419453,0.01394584,93909.0,93908.0,0.00511072]
[1740961419678,0.001,93909.0,93908.0,1.50511072]
[1740961420060,0.001,93909.0,93908.0,1.66484072]
[1740961420399,0.001,93909.0,93908.0,1.47911071]
[1740961420602,0.160729,93909.0,93908.0,1.47911071]
[1740961420814,0.159729,93909.0,93908.0,1.47911071]
[1740961420944,0.159742,93901.0,93900.0,0.26420455]
[1740961421145,0.159742,93901.0,93900.0,0.26432552]
[1740961421389,0.16160576,93901.0,93900.0,0.26432552]
[1740961421550,0.00186376,93902.0,93900.0,0.26432552]
[1740961421748,0.001,93909.0,93908.0,0.15973]
[1740961422025,0.00186359,93927.0,93900.0,0.26432552]
[1740961422338,0.00812398,93944.0,93901.0,0.21299]
[1740961422514,0.00812398,93944.0,93900.0,0.26432552]
[1740961422515,0.0126773,93927.0,93900.0,0.26432552]
[1740961422689,0.00186352,93927.0,93900.0,0.26432552]
[1740961422852,0.00186347,93935.0,93900.0,0.26432552]
[1740961423053,0.212981,93905.0,93900.0,0.26432552]
[1740961423254,0.3,93931.0,93907.0,0.158732]
[1740961423480,0.3,93931.0,93900.0,0.26432552]
[1740961423481,0.159742,93901.0,93900.0,0.26432552]
[1740961423718,0.3,93923.0,93900.0,0.26432552]
[1740961423859,0.159737,93905.0,93900.0,0.26432552]
[1740961424058,0.3,93920.0,93900.0,0.26432552]
[1740961424281,0.00186363,93919.0,93900.0,0.26432552]
[1740961424480,0.159719,93915.0,93906.0,0.159732]
[1740961424713,0.159719,93915.0,93900.0,0.26432552]
[1740961424714,0.00186347,93914.0,93904.0,0.159736]
[1740961424914,0.21296,93915.0,93904.0,0.159736]
[1740961425135,0.001,93905.0,93904.0,0.159736]
[1740961425337,0.001,93905.0,93900.0,0.26432552]
[1740961426111,0.00286367,93905.0,93900.0,0.26432552]
[1740961426458,0.2796696,93921.0,93900.0,0.26432552]
[1740961426676,0.159729,93910.0,93900.0,0.26432552]
[1740961426798,0.001,93915.0,93900.0,0.26432552]
[1740961427006,0.00186355,93919.0,93900.0,0.26432552]
[1740961427240,0.2796696,93921.0,93900.0,0.26432552]
[1740961427449,0.001,93905.0,93904.0,0.159737]
[1740961427683,0.00186346,93919.0,93900.0,0.26432552]
[1740961428018,0.159742,93901.0,93900.0,0.26432552]
[1740961428660,0.05,93938.0,93900.0,0.26432552]
[1740961428810,0.159742,93901.0,93900.0,0.26432552]
[1740961429627,0.159741,93902.0,93900.0,0.26432552]
[1740961429849,0.159742,93901.0,93900.0,0.26432552]
[1740961430672,0.160742,93901.0,93900.0,0.26432552]
[1740961430897,0.17162802,93901.0,93900.0,0.26432552]
[1740961431475,0.17062802,93901.0,93900.0,0.23832551]
[1740961432573,0.02101775,93914.0,93900.0,0.23832551]
[1740961432781,0.159729,93909.0,93900.0,0.23832551]
[1740961433106,0.29039995,93919.0,93900.0,0.23832551]
[1740961433305,0.2796696,93919.0,93901.0,1.5]
[1740961433754,0.2796696,93919.0,93903.0,0.212985]
[1740961433958,0.2796696,93919.0,93900.0,0.23832551]
[1740961433959,0.00186347,93918.0,93900.0,0.23832551]
[1740961434288,0.159735,93905.0,93900.0,0.23832551]
[1740961434398,0.159742,93901.0,93900.0,0.23832551]
[1740961435561,0.159737,93905.0,93900.0,0.23832551]
[1740961435766,0.00186369,93915.0,93900.0,0.23832551]
[1740961435909,0.21296,93914.0,93900.0,0.23832551]
[1740961436115,0.00186369,93913.0,93900.0,0.23832551]
[1740961436427,0.15972,93914.0,93900.0,0.23832551]
[1740961436648,0.00186348,93913.0,93900.0,0.23832551]
[1740961436848,0.01076513,93920.0,93901.0,0.0498]
[1740961437055,0.01076513,93920.0,93914.0,0.159719]
[1740961437242,0.00044815,93956.0,93918.0,0.159713]
[1740961437449,0.00044815,93956.0,93901.0,0.0498]
[1740961437450,0.212932,93927.0,93906.0,0.0110477]
[1740961437650,0.28011796,93919.0,93901.0,0.0498]
[1740961438024,0.28011796,93919.0,93915.0,0.159718]
[1740961438219,0.00044836,93919.0,93901.0,0.06081618]
[1740961438419,0.00044836,93919.0,93918.0,0.159713]
[1740961438752,0.00044836,93919.0,93910.0,0.0799]
[1740961438918,0.159715,93918.0,93910.0,0.159726]
[1740961439118,0.00044836,93919.0,93901.0,0.1306]
[1740961439318,0.00231173,93919.0,93907.0,0.212975]
[1740961439524,0.00044836,93919.0,93901.0,0.1306]
[1740961439727,0.00044836,93919.0,93918.0,1.5]
[1740961440184,0.16016036,93919.0,93918.0,1.5]
[1740961440418,0.00044836,93919.0,93918.0,1.47399999]
[1740961440756,0.16016036,93919.0,93918.0,1.47399999]
[1740961440959,0.00044836,93919.0,93918.0,1.47399999]
[1740961441841,0.00044836,93919.0,93918.0,1.63371299]
[1740961442285,0.00044836,93919.0,93918.0,1.71341299]
[1740961442491,0.00044836,93919.0,93918.0,1.76001299]
[1740961442914,0.212913,93935.0,93918.0,1.60029999]
[1740961443119,0.00186302,93948.0,93918.0,0.1263]
[1740961443580,0.00186302,93948.0,93933.0,1.5]
[1740961443804,0.159686,93934.0,93933.0,1.5]
[1740961444014,0.00186302,93948.0,93933.0,1.5]
[1740961444227,0.159678,93939.0,93933.0,1.5]
[1740961444381,0.00186302,93946.0,93933.0,1.5]
[1740961444574,0.159686,93934.0,93933.0,1.5]
[1740961444962,0.00186307,93935.0,93918.0,0.0466]
[1740961445362,0.00186307,93935.0,93908.0,0.081]
[1740961445562,0.28153282,93946.0,93908.0,0.08112097]
[1740961445767,0.3,93938.0,93908.0,0.00012097]
[1740961445919,0.159719,93915.0,93908.0,0.00012097]
[1740961446126,0.159714,93918.0,93908.0,0.00012097]
[1740961446345,0.30186337,93935.0,93909.0,0.159729]
[1740961446545,0.212949,93920.0,93908.0,0.21309297]
[1740961446724,0.00186336,93919.0,93908.0,0.00012097]
[1740961446927,0.159729,93909.0,93908.0,0.00012097]
[1740961447125,0.16159274,93909.0,93908.0,0.00012097]
[1740961447841,0.74126234,93909.0,93908.0,0.00012097]
[1740961448025,0.8317186,93909.0,93908.0,0.00012097]
[1740961449469,0.159742,93901.0,93891.0,0.0004]
[1740961450071,0.16160594,93901.0,93891.0,0.0004]
[1740961450538,0.16160594,93901.0,93900.0,0.21241803]
[1740961451593,0.159742,93901.0,93900.0,0.21241803]
[1740961451802,0.01108248,93920.0,93904.0,0.212982]
[1740961451964,0.0018636,93919.0,93900.0,0.21241803]
[1740961452354,0.159718,93916.0,93908.0,1.5]
[1740961452560,0.159724,93912.0,93908.0,1.5]
[1740961452774,0.00186355,93917.0,93908.0,1.5]
[1740961452965,0.159729,93909.0,93908.0,1.5]
[1740961453631,0.22363875,93920.0,93908.0,1.5]
[1740961453803,0.0018635,93931.0,93908.0,1.5]
[1740961453944,0.0018635,93931.0,93900.0,0.21241803]
[1740961453945,0.159708,93921.0,93904.0,0.212982]
[1740961454310,0.159703,93924.0,93917.0,0.159713]
[1740961454447,0.212936,93925.0,93915.0,0.159718]
[1740961454653,0.212942,93923.0,93902.0,0.212988]
[1740961454902,0.159707,93922.0,93900.0,0.21241803]
[1740961455143,0.01111586,93925.0,93903.0,0.212985]
[1740961455355,0.00198387,93919.0,93900.0,0.21241803]
[1740961455547,0.00198387,93919.0,93900.0,0.18641802]
[1740961455754,0.00012061,93919.0,93900.0,0.18641802]
[1740961456125,0.159742,93901.0,93900.0,0.18641802]
[1740961456440,0.15974,93903.0,93900.0,0.18641802]
[1740961456626,0.159742,93901.0,93900.0,0.18641802]
[1740961457237,0.459742,93901.0,93900.0,0.18641802]
[1740961458039,0.48162548,93901.0,93900.0,0.18641802]
[1740961458513,0.76129508,93901.0,93900.0,0.18641802]
[1740961459617,0.7394116,93901.0,93900.0,0.18641802]
[1740961460375,0.7394116,93901.0,93900.0,0.16041801]
[1740961460979,0.73985933,93901.0,93900.0,0.16041801]
[1740961464837,0.74315933,93901.0,93900.0,0.16041801]
[1740961465074,0.82485933,93901.0,93900.0,0.16041801]
[1740961465425,0.82485933,93901.0,93900.0,0.134418]
[1740961466668,0.74315933,93901.0,93900.0,0.134418]
[1740961468525,0.28011733,93901.0,93900.0,0.134418]
[1740961468828,0.43985933,93901.0,93900.0,0.134418]
[1740961469400,0.73985933,93901.0,93900.0,1.634418]
[1740961469603,0.43985933,93901.0,93900.0,1.634418]
[1740961469804,0.00044773,93901.0,93900.0,1.634418]
[1740961470003,0.00044773,93901.0,93900.0,1.794162]
[1740961470372,0.00044773,93901.0,93900.0,1.76816199]
[1740961470612,0.00044773,93901.0,93900.0,1.60841799]
[1740961471872,0.16018973,93901.0,93900.0,1.60841799]
[1740961473007,0.00044773,93901.0,93900.0,1.60841799]
[1740961473168,0.00044773,93901.0,93900.0,1.76816199]
[1740961475326,0.00044773,93901.0,93900.0,1.89776199]
[1740961476742,0.00044773,93901.0,93900.0,2.30659901]
[1740961477295,0.00044773,93901.0,93900.0,2.19776199]
[1740961478454,0.00044773,93901.0,93900.0,1.89776199]
[1740961478650,0.00044773,93901.0,93900.0,1.73801799]
[1740961478802,0.00044773,93901.0,93900.0,0.39776199]
[1740961480177,0.00044773,93901.0,93900.0,1.89776199]
[1740961488465,0.00044773,93901.0,93900.0,2.41188521]
[1740961488667,0.00044773,93901.0,93900.0,2.46188521]
[1740961488991,0.00012061,93919.0,93918.0,0.288913]
[1740961489187,0.00012061,93919.0,93918.0,0.588913]
[1740961489390,0.00012061,93919.0,93906.0,0.0804]
[1740961489628,0.00012061,93919.0,93907.0,1.5]
[1740961489827,0.00012061,93919.0,93912.0,0.159723]
[1740961490070,0.00012061,93919.0,93908.0,0.212972]
[1740961490332,0.00012061,93919.0,93908.0,0.212973]
[1740961490561,0.00012061,93919.0,93909.0,1.5]
[1740961491162,0.159727,93910.0,93909.0,1.5]
[1740961491741,0.159727,93910.0,93900.0,0.10841799]
[1740961491742,0.159742,93901.0,93900.0,0.10841799]
[1740961492444,0.3,93917.0,93900.0,0.10841799]
[1740961492898,0.159732,93907.0,93900.0,0.10841799]
[1740961493132,0.3,93917.0,93900.0,0.10841799]
[1740961493346,0.159742,93901.0,93900.0,0.10841799]
[1740961493787,0.00012061,93919.0,93900.0,0.10841799]
[1740961494007,0.01074959,93912.0,93900.0,0.10841799]
[1740961494227,0.15973,93909.0,93900.0,0.10841799]
[1740961494471,0.159742,93901.0,93900.0,0.10841799]
[1740961494910,0.01059565,93912.0,93900.0,0.10841799]
[1740961495136,0.212979,93906.0,93900.0,0.10841799]
[1740961495376,0.159739,93903.0,93900.0,0.10841799]
[1740961495600,0.159738,93904.0,93900.0,0.10841799]
[1740961496501,0.159742,93901.0,93900.0,0.10841799]
[1740961496746,0.46160581,93901.0,93900.0,0.10841799]
[1740961496993,0.459742,93901.0,93900.0,0.10841799]
[1740961497200,0.48143918,93901.0,93900.0,0.10463904]
[1740961499348,0.76110878,93901.0,93900.0,0.10463904]
[1740961499978,0.3,93891.0,93879.0,0.00499]
[1740961500186,0.459778,93880.0,93879.0,0.00499]
[1740961500416,0.459778,93880.0,93871.0,1.5]
[1740961500417,0.3,93879.0,93871.0,1.5]
[1740961500817,0.159792,93872.0,93871.0,1.5]
[1740961500956,0.159817,93857.0,93844.0,0.09560875]
[1740961501158,0.28153404,93879.0,93844.0,0.09560875]
[1740961501363,0.02138975,93875.0,93844.0,0.09601155]
[1740961501547,0.00186442,93874.0,93844.0,0.09601155]
[1740961501753,0.213085,93860.0,93848.0,0.159832]
[1740961501955,0.213085,93860.0,93844.0,0.09601155]
[1740961501956,0.00186442,93874.0,93844.0,0.09601155]
[1740961502385,0.15979,93873.0,93844.0,0.09601155]
[1740961502581,0.2796696,93899.0,93855.0,0.2]
[1740961502783,0.2796696,93899.0,93858.0,0.0459]
[1740961503006,0.01056733,93912.0,93858.0,0.0459]
[1740961503007,0.22353233,93912.0,93868.0,0.3]
[1740961503205,0.22353233,93912.0,93869.0,0.0811]
[1740961503206,0.00186366,93911.0,93869.0,0.0811]
[1740961503682,0.159771,93884.0,93869.0,0.0811]
[1740961503832,0.0018639,93908.0,93871.0,0.213058]
[1740961504032,0.3018639,93908.0,93869.0,0.0811]
[1740961504245,0.3,93908.0,93869.0,0.0811]
[1740961504457,0.3,93906.0,93869.0,0.0811]
[1740961504655,0.0018638,93905.0,93869.0,0.0811]
[1740961505235,0.3,93906.0,93870.0,0.12188322]
[1740961505667,0.22353433,93912.0,93871.0,0.3]
[1740961505668,0.01056733,93912.0,93871.0,0.3]
[1740961505915,0.00186352,93914.0,93877.0,0.2]
[1740961506068,0.02156058,93928.0,93878.0,0.0938462]
[1740961506229,0.39406342,93927.0,93878.0,0.0938462]
[1740961506431,0.00186361,93917.0,93879.0,0.21304]
[1740961506639,0.159732,93907.0,93878.0,0.0938462]
[1740961506846,0.0112349,93918.0,93879.0,0.21304]
[1740961507077,0.01309844,93918.0,93880.0,0.213037]
[1740961507273,0.0112349,93918.0,93881.0,0.40883702]
[1740961507476,0.00044773,93918.0,93881.0,0.30883702]
[1740961507679,0.00044773,93918.0,93906.0,0.212976]
[1740961507920,0.00044773,93918.0,93892.0,0.0773]
[1740961508111,0.00044794,93906.0,93892.0,0.0773]
[1740961508288,0.00044794,93906.0,93905.0,0.159735]
[1740961508671,0.00044794,93906.0,93905.0,1.659735]
[1740961508875,0.00044794,93906.0,93905.0,2.41051822]
[1740961509098,0.00044794,93906.0,93905.0,2.58396122]
[1740961509280,0.00044773,93918.0,93917.0,0.740315]
[1740961509479,0.00044773,93918.0,93917.0,0.66219822]
[1740961509949,0.00044773,93918.0,93917.0,2.0533612]
[1740961511092,0.00044773,93918.0,93917.0,2.36219822]
[1740961512895,0.00044773,93918.0,93917.0,2.1835589]
[1740961513270,0.00044773,93918.0,93917.0,2.19163721]
[1740961513688,0.00044773,93918.0,93917.0,1.7533612]
[1740961513894,0.16016073,93918.0,93917.0,0.0130462]
[1740961514045,0.16016073,93918.0,93895.0,0.0763]
[1740961514255,0.159744,93900.0,93887.0,0.213019]
[1740961514465,0.159727,93911.0,93903.0,0.159737]
[1740961514659,0.159725,93912.0,93881.0,0.0799]
[1740961514879,0.21296,93915.0,93886.0,0.213022]
[1740961515086,0.159742,93902.0,93886.0,0.213022]
[1740961515433,0.159725,93911.0,93910.0,0.09560875]
[1740961515606,0.21340073,93918.0,93917.0,0.159715]
[1740961515607,0.00044773,93918.0,93917.0,0.159715]
[1740961516693,0.00044773,93918.0,93910.0,0.09560875]
[1740961516893,0.00044773,93918.0,93917.0,0.159715]
[1740961518610,0.00044773,93918.0,93917.0,1.98330214]
[1740961518815,0.00044773,93918.0,93917.0,2.17013916]
[1740961519161,0.00044773,93918.0,93917.0,2.06130214]
[1740961519275,0.00044773,93918.0,93917.0,1.6727612]
[1740961519942,0.00044773,93918.0,93917.0,1.5130462]
[1740961520239,0.00044773,93918.0,93917.0,1.6727612]
[1740961520668,0.16016073,93918.0,93917.0,1.5130462]
[1740961521294,0.16016073,93918.0,93917.0,1.5]
[1740961521453,0.16016073,93918.0,93917.0,1.507]
[1740961521454,0.16116073,93918.0,93917.0,1.507]
[1740961521885,0.00044773,93918.0,93917.0,1.659715]
[1740961522318,0.00144773,93918.0,93917.0,1.666715]
[1740961524011,0.00144773,93918.0,93917.0,1.507]
[1740961524435,0.16116073,93918.0,93917.0,1.507]
[1740961524830,0.17211147,93918.0,93917.0,1.507]
[1740961525441,0.01139847,93918.0,93907.0,0.212976]
[1740961525616,0.159721,93914.0,93908.0,0.15973]
[1740961525815,0.159721,93914.0,93892.0,0.02369999]
[1740961525816,0.01239847,93918.0,93892.0,0.02369999]
[1740961526017,0.212953,93917.0,93909.0,0.159727]
[1740961526265,0.159723,93913.0,93906.0,0.159733]
[1740961526461,0.01139847,93918.0,93892.0,0.02369999]
[1740961526637,0.01139847,93918.0,93909.0,0.159727]
[1740961526846,0.01139847,93918.0,93897.0,0.212997]
[1740961527083,0.01139847,93918.0,93906.0,0.159732]
[1740961527298,0.159718,93916.0,93892.0,0.02369999]
[1740961527488,0.00044773,93918.0,93917.0,0.159715]
[1740961527699,0.00144773,93918.0,93917.0,0.166715]
[1740961528099,0.00044773,93918.0,93917.0,0.159715]
[1740961528299,0.00044773,93918.0,93894.0,0.3]
[1740961528500,0.16116173,93918.0,93917.0,1.5]
[1740961529073,0.16016173,93918.0,93917.0,1.5]
[1740961529279,0.16116173,93918.0,93917.0,1.507]
[1740961529526,0.16116173,93918.0,93917.0,1.50683182]
[1740961530502,0.16116173,93918.0,93917.0,1.48083181]
[1740961530710,0.16016173,93918.0,93917.0,1.47383181]
[1740961531111,0.16116173,93918.0,93917.0,0.007]
[1740961531505,0.159733,93907.0,93904.0,1.5]
[1740961532078,0.16116173,93918.0,93904.0,1.5]
[1740961532079,0.00144773,93918.0,93904.0,1.5]
[1740961532279,0.00044773,93918.0,93906.0,0.0002131]
[1740961532478,0.00044773,93918.0,93907.0,0.159732]
[1740961532709,0.00044773,93918.0,93912.0,0.159722]
[1740961532863,0.00044773,93918.0,93907.0,0.159732]
[1740961533077,0.00044773,93918.0,93908.0,0.159729]
[1740961533078,0.15972,93915.0,93908.0,0.159729]
[1740961533252,0.00044773,93918.0,93913.0,0.15972]
[1740961533449,0.00044773,93918.0,93914.0,0.15972]
[1740961533699,0.00044773,93918.0,93917.0,0.159715]
[1740961534298,0.00144773,93918.0,93917.0,0.17065585]
[1740961534738,0.00044773,93918.0,93917.0,0.17065585]
[1740961535013,0.00144773,93918.0,93917.0,0.17765585]
[1740961535359,0.00044773,93918.0,93917.0,0.17065585]
[1740961535747,0.00044773,93918.0,93917.0,0.17765585]
[1740961536022,0.00144773,93918.0,93917.0,0.17765585]
[1740961537231,0.00044773,93918.0,93917.0,0.17065585]
[1740961537431,0.00144773,93918.0,93917.0,0.17765585]
[1740961537905,0.00144773,93918.0,93917.0,0.166715]
[1740961538059,0.00044773,93918.0,93917.0,0.159715]
[1740961538259,0.00044773,93918.0,93917.0,0.166715]
[1740961538528,0.00144773,93918.0,93917.0,1.67738174]
[1740961538857,0.00044773,93918.0,93917.0,1.68342794]
[1740961539060,0.00144773,93918.0,93917.0,1.68977468]
[1740961539898,0.00144773,93918.0,93917.0,1.67910794]
[1740961540106,0.00144773,93918.0,93917.0,1.507]
[1740961540286,0.00144773,93918.0,93917.0,0.007]
[1740961540722,0.00144773,93918.0,93917.0,1.507]
[1740961541107,0.16116073,93918.0,93917.0,1.507]
[1740961541283,0.16016073,93918.0,93917.0,1.5]
[1740961541583,0.16116073,93918.0,93917.0,1.507]
[1740961541954,0.16016073,93918.0,93917.0,1.5]
[1740961542130,0.00044773,93918.0,93917.0,1.5]
[1740961542329,0.00144773,93918.0,93917.0,1.507]
[1740961542775,0.00044773,93918.0,93917.0,1.659715]
[1740961543107,0.00144773,93918.0,93917.0,1.666715]
[1740961544198,0.00144773,93918.0,93917.0,1.6797612]
[1740961544404,0.00144773,93918.0,93917.0,1.6727612]
[1740961544543,0.00044773,93918.0,93917.0,1.6727612]
[1740961544743,0.00144773,93918.0,93917.0,1.98759822]
[1740961545315,0.00044773,93918.0,93917.0,2.28159822]
[1740961545480,0.00044773,93918.0,93917.0,2.28759822]
[1740961545725,0.00144773,93918.0,93917.0,2.08759822]
[1740961545903,0.00144773,93918.0,93917.0,1.9787612]
[1740961546108,0.00144773,93918.0,93917.0,2.08759822]
[1740961546668,0.00144773,93918.0,93917.0,2.25613822]
[1740961548561,0.00144773,93918.0,93917.0,2.0552612]
[1740961549938,0.00144773,93918.0,93917.0,1.6787612]
[1740961550757,0.00144773,93918.0,93917.0,1.98759822]
[1740961552329,0.00144773,93918.0,93917.0,2.28759822]
[1740961552610,0.00144773,93918.0,93917.0,2.41389822]
[1740961554622,0.00044773,93918.0,93917.0,2.40789822]
[1740961554780,0.00144773,93918.0,93917.0,2.41489822]
[1740961555396,0.00044773,93918.0,93917.0,2.40789822]
[1740961555719,7.3e-07,93918.0,93917.0,2.41489822]
[1740961556324,7.3e-07,93918.0,93917.0,2.66489822]
[1740961556530,7.3e-07,93918.0,93917.0,2.41489822]
[1740961556693,7.3e-07,93918.0,93917.0,2.26489822]
[1740961556894,0.00044836,93934.0,93933.0,0.459688]
[1740961557115,0.00056899,93934.0,93933.0,0.4727342]
[1740961558141,0.00056899,93934.0,93933.0,0.4797342]
[1740961558923,0.00056899,93934.0,93933.0,1.9727342]
[1740961559725,0.00056899,93934.0,93933.0,2.303026]
[1740961559957,0.00056899,93934.0,93933.0,2.428126]
[1740961560283,0.00056899,93934.0,93933.0,2.435126]
[1740961560902,0.00056899,93934.0,93933.0,2.428126]
[1740961561113,0.00056899,93934.0,93933.0,2.44332607]
[1740961561851,0.00056899,93934.0,93933.0,2.64332607]
[1740961562061,0.00056899,93934.0,93933.0,2.44332607]
[1740961563124,0.005,93953.0,93933.0,2.44332607]
[1740961563125,0.005,93953.0,93952.0,0.159655]
[1740961563267,1.5e-07,93956.0,93955.0,0.45965]
[1740961563468,1.5e-07,93956.0,93955.0,0.67993322]
[1740961564459,1.5e-07,93956.0,93955.0,0.68693322]
[1740961564922,1.5e-07,93956.0,93955.0,0.72185322]
[1740961565359,1.5e-07,93956.0,93955.0,0.72885322]
[1740961566111,1.5e-07,93956.0,93955.0,0.750016]
[1740961566342,1.5e-07,93956.0,93955.0,0.5716162]
[1740961567933,1.5e-07,93956.0,93955.0,0.1796962]
[1740961568538,1.5e-07,93956.0,93955.0,1.5200462]
[1740961568740,0.15964915,93956.0,93955.0,1.5200462]
[1740961568941,0.15964915,93956.0,93955.0,1.507]
[1740961569142,0.28364915,93956.0,93955.0,0.007]
[1740961569524,0.59468326,93956.0,93955.0,0.007]
[1740961569714,0.159661,93949.0,93933.0,0.0002131]
[1740961570416,0.159661,93949.0,93948.0,0.06931165]
[1740961570656,0.83975531,93949.0,93948.0,0.06931165]
[1740961570821,0.459686,93934.0,93933.0,0.0002131]
[1740961571870,0.539386,93934.0,93933.0,0.0002131]
[1740961572072,0.585686,93934.0,93933.0,0.0002131]
[1740961572903,0.8653556,93934.0,93933.0,0.0002131]
[1740961573138,0.8653556,93934.0,93919.0,0.09529526]
[1740961573139,0.45971,93920.0,93919.0,0.09529526]
[1740961573335,0.459732,93907.0,93864.0,0.01092412]
[1740961573545,0.7394016,93907.0,93859.0,0.213085]
[1740961573932,0.8149016,93907.0,93856.0,0.0130462]
[1740961574139,0.159802,93866.0,93853.0,0.0453]
[1740961574351,0.159802,93866.0,93865.0,0.00511101]
[1740961574612,0.046,93896.0,93865.0,0.00511101]
[1740961574798,0.159768,93886.0,93878.0,0.15978]
[1740961574943,0.11272027,93905.0,93865.0,0.00511101]
[1740961575147,0.159759,93892.0,93879.0,0.213038]
[1740961575349,0.3,93904.0,93867.0,0.0809]
[1740961575550,0.2796696,93907.0,93906.0,0.159734]
[1740961575767,0.08,93918.0,93885.0,0.0452]
[1740961575988,0.0018634,93917.0,93885.0,0.0452]
[1740961576185,0.3,93925.0,93890.0,0.15976]
[1740961576501,0.00186363,93924.0,93877.0,0.3]
[1740961576733,0.00186363,93924.0,93923.0,0.159705]
[1740961576905,0.00012088,93924.0,93910.0,0.159726]
[1740961577119,0.00012088,93924.0,93879.0,0.2]
[1740961577120,0.159712,93919.0,93912.0,0.159723]
[1740961577405,0.159712,93919.0,93879.0,0.2]
[1740961577406,0.00012088,93924.0,93879.0,0.2]
[1740961577627,0.0019843,93924.0,93890.0,0.002]
[1740961577851,0.0019843,93924.0,93891.0,0.159758]
[1740961578013,0.159746,93899.0,93880.0,0.0130462]